fUST/lending_fUST_20251024
["ID","MTS","AMOUNT","RATE_DAILY","PERIOD"]
[392191123,1761249032183,-976.28811774,0.00021427,2]
[392191199,1761249038017,-432.84810422,0.00021427,2]
[392191200,1761249038029,-386.0,0.00021429,2]
[392191201,1761249038041,-386.0,0.00021467,2]
[392191202,1761249038052,-386.0,0.0002149,2]
[392191203,1761249038063,-386.0,0.0002155,2]
[392191204,1761249038075,-192.11974119,0.00021572,2]
[392191205,1761249038095,-1056.45599659,0.00021572,2]
[392191206,1761249038108,-386.0,0.00021621,2]
[392191207,1761249038120,-300.0,0.00021668,2]
[392191208,1761249038132,-1200.0,0.00021668,2]
[392191209,1761249038144,-521.83864467,0.00021669,2]
[392191210,1761249038156,-500.0,0.00021669,2]
[392191211,1761249038168,-258.17185687,0.00021669,2]
[392191212,1761249038180,-500.0,0.00021669,2]
[392191213,1761249038192,-500.0,0.00021669,2]
[392191214,1761249038205,-537.56158394,0.00021669,2]
[392191215,1761249038217,-500.0,0.00021669,2]
[392191216,1761249038230,-500.0,0.00021669,2]
[392191217,1761249038243,-500.0,0.00021669,2]
[392191218,1761249038256,-500.0,0.00021669,2]
[392191219,1761249038268,-500.0,0.00021669,2]
[392191220,1761249038280,-423.56408988,0.00021669,2]
[392191221,1761249038291,-229.64987919,0.00021669,2]
[392191222,1761249038306,-24385.75611387,0.0002167,2]
[392191223,1761249038321,-25614.24388613,0.0002167,2]
[392191224,1761249038333,-386.93764614,0.00021673,2]
[392191225,1761249038348,-500.0,0.00021673,2]
[392191226,1761249038361,-500.0,0.00021673,2]
[392191227,1761249038373,-500.0,0.00021673,2]
[392191228,1761249038383,-418.17723117,0.00021673,2]
[392191229,1761249038393,-500.0,0.00021673,2]
[392191230,1761249038545,-500.0,0.00021673,2]
[392191231,1761249038555,-500.0,0.00021673,2]
[392191232,1761249038566,-500.0,0.00021673,2]
[392191233,1761249038575,-500.0,0.00021673,2]
[392191234,1761249038586,-500.0,0.00021673,2]
[392191235,1761249038596,-500.0,0.00021673,2]
[392191236,1761249038606,-500.0,0.00021673,2]
[392191237,1761249038616,-500.0,0.00021673,2]
[392191238,1761249038627,-500.0,0.00021673,2]
[392191239,1761249038637,-500.0,0.00021673,2]
[392191240,1761249038647,-395.84584219,0.00021673,2]
[392191276,1761249040280,-108.22843226,0.00021673,2]
[392191278,1761249040289,-500.0,0.00021673,2]
[392191280,1761249040300,-500.0,0.00021673,2]
[392191281,1761249040309,-500.0,0.00021673,2]
[392191283,1761249040318,-500.0,0.00021673,2]
[392191285,1761249040328,-500.0,0.00021673,2]
[392191288,1761249040339,-500.0,0.00021673,2]
[392191289,1761249040348,-500.0,0.00021673,2]
[392191291,1761249040357,-500.0,0.00021673,2]
[392191293,1761249040366,-2420.67,0.00021689,3]
[392191296,1761249040377,-1210.33,0.00021689,3]
[392191300,1761249040387,-605.17,0.00021689,3]
[392191301,1761249040395,-302.58,0.00021689,3]
[392191303,1761249040404,-151.29,0.00021689,3]
[392191305,1761249040414,-453.91,0.00021689,3]
[392191308,1761249040424,-2867.47,0.00021689,10]
[392191310,1761249040434,-1938.51,0.00021689,10]
[392191311,1761249040443,-2345.57,0.00021689,10]
[392191313,1761249040452,-1954.64,0.00021689,10]
[392191315,1761249040461,-500.0,0.00021689,3]
[392191317,1761249040470,-386.0,0.00021695,2]
[392191319,1761249040480,-70122.56168191,0.00021699,2]
[392191322,1761249040491,-5696.68,0.00021699,2]
[392193013,1761249058385,6225.36144435,0.00021,2]
[392193014,1761249058407,10000.01,0.00021,2]
[392193015,1761249058429,10000.01,0.00021,2]
[392193016,1761249058451,2041.61855565,0.00021,2]
[392194973,1761249089399,2571.29047449,0.00021203,2]
[392194974,1761249094868,5387.10096986,0.00020896,2]
[392194975,1761249095000,10000.01,0.00020896,2]
[392194976,1761249095023,5082.47215144,0.00020896,2]
[392194977,1761249097814,-449.99,0.00021482,2]
[392194978,1761249097843,-289.11940033,0.00021669,2]
[392194979,1761249097872,-400.00831529,0.00021669,2]
[392194980,1761249097900,-243.0,0.00021669,2]
[392194981,1761249097929,-243.0,0.00021669,2]
[392194982,1761249097957,-500.0,0.00021673,2]
[392194983,1761249097986,-500.0,0.00021673,2]
[392194984,1761249098015,-300.0,0.00021698,2]
[392194985,1761249104265,-2174.40563564,0.00021699,2]
[392194986,1761249106734,-10000.01,0.00021699,2]
[392194987,1761249106874,-428.26272476,0.00021699,2]
[392194988,1761249106897,-9143.48455048,0.00021699,2]
[392194989,1761249106995,-500.0,0.00021699,2]
[392194990,1761249107023,-500.0,0.00021754,2]
[392194991,1761249112631,222.54414156,0.00021671,2]
[392194992,1761249116557,150.0,0.000193,2]
[392194993,1761249116954,150.0,0.00020219,2]
[392194994,1761249117348,150.0,0.00021138,2]
[392194995,1761249133962,5000.0,0.00021178,2]
[392194998,1761249156545,5000.0,0.000212,9]
[392195003,1761249179717,1207.6511741,0.000212,9]
[392195004,1761249186915,150.0,0.00019573,2]
[392195005,1761249187331,150.0,0.00020505,2]
[392195006,1761249191088,150.0,0.0001739,30]
[392195007,1761249191496,150.0,0.00018218,30]
[392195008,1761249191891,150.0,0.00019046,30]
[392195010,1761249219273,-1962.07095887,0.00021402,2]
[392195011,1761249219306,-150.0,0.00021437,2]
[392195012,1761249219339,-753.62554557,0.00021481,2]
[392195013,1761249219369,-195.42,0.00021563,3]
[392195014,1761249219399,-586.27,0.00021563,3]
[392195015,1761249219431,-486.66699112,0.00021563,10]
[392195016,1761249225178,-1731.90300888,0.00021563,10]
[392195017,1761249225210,-1848.8,0.00021563,10]
[392195018,1761249225238,-1297.93398224,0.00021563,10]
[392195019,1761249231175,-242.73601776,0.00021563,10]
[392195020,1761249231204,-300.0,0.00021572,2]
[392195021,1761249231248,398.43309843,0.00021568,2]
[392195022,1761249233238,1283.89,0.00021563,10]
[392195023,1761249244405,5000.0,0.00021178,2]
[392195024,1761249249221,246.26315415,0.00019,2]
[392195025,1761249253656,954.0578191,0.00020828,2]
[392195026,1761249260171,160.28,0.00019465,2]
[392195027,1761249260582,320.57,0.00020392,2]
[392195028,1761249264751,150.0,0.00017388,30]
[392195029,1761249265146,150.0,0.00018216,30]
[392195030,1761249265561,206.08,0.00019044,30]
[392195031,1761249265985,274.77,0.00019872,30]
[392195032,1761249266378,343.46,0.000207,30]
[392195033,1761249267107,3318.83902675,0.00021178,2]
[392195034,1761249267131,1681.16097325,0.00021178,2]
[392195035,1761249274902,2355.22622577,0.00021178,2]
[392195036,1761249289839,3300.53548762,0.000212,9]
[392195037,1761249305882,347.39923723,0.00016,2]
[392195038,1761249326976,877.95959131,0.000212,9]
[392195039,1761249338527,186.67,0.00019347,2]
[392195040,1761249338915,373.34,0.00020268,2]
[392195041,1761249340707,-560.0,0.0002119,2]
[392195042,1761249342549,150.0,0.00017486,30]
[392195043,1761249342943,160.0,0.00018319,30]
[392195044,1761249343346,240.0,0.00019151,30]
[392195045,1761249343747,320.0,0.00019984,30]
[392195046,1761249344163,400.0,0.00020817,30]
[392195047,1761249355933,-205.60680494,0.00021229,2]
[392195048,1761249355965,-1200.0,0.0002148,2]
[392195049,1761249355994,-3523.60035985,0.00021481,2]
[392195050,1761249356160,-175.34672668,0.00021481,2]
[392195051,1761249356188,-1092.50377054,0.00021496,2]
[392195052,1761249356216,-1069.91,0.00021563,10]
[392195053,1761249356246,-891.59,0.00021563,10]
[392195054,1761249356275,-300.0,0.00021571,2]
[392195055,1761249356301,-238.02632849,0.00021572,2]
[392195056,1761249356329,-446.92089221,0.00021572,2]
[392195057,1761249356360,-504.17350933,0.00021572,2]
[392195058,1761249356387,-62.23388099,0.00021573,2]
[392195059,1761249358631,-742.99,0.00021563,10]
[392195060,1761249358660,-438.59978352,0.00021573,2]
[392195061,1761249358689,-500.0,0.00021573,2]
[392195062,1761249358717,-500.0,0.00021573,2]
[392195063,1761249358744,-500.0,0.00021573,2]
[392195064,1761249358772,-500.0,0.00021573,2]
[392195065,1761249358800,-500.0,0.00021573,2]
[392195066,1761249358829,-500.0,0.00021573,2]
[392195067,1761249358856,-500.0,0.00021573,2]
[392195068,1761249358884,-288.18986646,0.00021573,2]
[392195069,1761249364657,-300.0,0.00021572,2]
[392195070,1761249364685,-500.0,0.00021573,2]
[392195072,1761249367699,-619.16,0.00021563,10]
[392195073,1761249368094,-7218.97785359,0.00021573,2]
[392195074,1761249373690,-10000.01,0.00021496,2]
[392195075,1761249379887,-10000.01,0.00021496,2]
[392195076,1761249384842,2644.77377423,0.000212,9]
[392195077,1761249387463,175.364,0.00020808,2]
[392195078,1761249400201,5000.0,0.000212,9]
[392195079,1761249416658,194.85,0.00019356,2]
[392195080,1761249417196,389.69,0.00020278,2]
[392195081,1761249421406,150.0,0.00012394,30]
[392195082,1761249421831,167.01,0.00012984,30]
[392195083,1761249422280,250.52,0.00013574,30]
[392195084,1761249423165,334.02,0.00014165,30]
[392195085,1761249423610,417.53,0.00014755,30]
[392195086,1761249424029,501.03,0.00015345,30]
[392195087,1761249424427,584.54,0.00015935,30]
[392195088,1761249424850,668.04,0.00016525,30]
[392195089,1761249425284,751.55,0.00017116,30]
[392195090,1761249425674,768.55910935,0.00017706,30]
[392195091,1761249426320,196.0,0.00016,2]
[392195092,1761249426660,196.0,0.0001705,2]
[392195093,1761249427383,355.6083522,0.000181,2]
[392195094,1761249433380,6208.2157931,0.00020592,2]
[392195095,1761249436038,-584.54,0.000212,2]
[392195098,1761249460778,480.84985886,0.00020803,2]
[392195099,1761249485205,-2397.02475137,0.00021496,2]
[392195100,1761249485479,-4794.04950274,0.00021496,2]
[392195101,1761249485623,-411.91099452,0.00021496,2]
[392195102,1761249485651,-800.0,0.00021535,2]
[392195103,1761249485681,-515.97,0.00021563,10]
[392195104,1761249485709,-429.97,0.00021563,10]
[392195105,1761249485737,-500.0,0.00021572,2]
[392195106,1761249485765,-300.0,0.00021572,2]
[392195107,1761249485795,-500.0,0.00021573,2]
[392195108,1761249485822,-500.0,0.00021573,2]
[392195109,1761249485849,-500.0,0.00021573,2]
[392195110,1761249485877,-500.0,0.00021573,2]
[392195111,1761249486192,-7538.37801096,0.00021573,2]
[392195112,1761249486219,-10000.01,0.00021573,2]
[392195113,1761249486246,-10000.01,0.00021573,2]
[392195114,1761249488087,-10000.01,0.00021573,2]
[392195115,1761249488254,-10000.01,0.00021573,2]
[392195119,1761249494193,-150.0,0.00019314,2]
[392195120,1761249494225,-295.58,0.00020234,2]
[392195121,1761249494255,-443.38,0.00021154,2]
[392195122,1761249494285,-358.31,0.00021563,10]
[392195123,1761249494362,-7505.47,0.00021573,2]
[392195124,1761249494390,-10000.01,0.00021573,2]
[392195125,1761249494610,-10000.01,0.00021573,2]
[392195126,1761249494837,-10000.01,0.00021573,2]
[392195127,1761249496987,150.0,0.00017382,30]
[392195128,1761249497387,150.0,0.00018209,30]
[392195129,1761249497863,190.02,0.00019037,30]
[392195130,1761249498341,253.36,0.00019865,30]
[392195131,1761249498698,316.7,0.00020692,30]
[392195132,1761249515884,4749.04957718,0.000212,9]
[392195133,1761249518166,-163.15440764,0.00021514,2]
[392195134,1761249518199,-380.04,0.0002152,30]
[392195135,1761249518228,-301.26,0.00021563,3]
[392195136,1761249518258,-248.83,0.00021563,10]
[392195137,1761249519620,500.0,0.00021572,2]
[392195138,1761249519649,500.0,0.00021572,2]
[392195139,1761249519677,500.0,0.00021572,2]
[392195140,1761249519704,157.21288266,0.00021572,2]
[392195141,1761249519730,500.0,0.00021572,2]
[392195142,1761249519756,500.0,0.00021572,2]
[392195143,1761249519783,500.0,0.00021572,2]
[392195144,1761249519810,500.0,0.00021572,2]
[392195145,1761249519842,500.0,0.00021572,2]
[392195146,1761249519871,500.0,0.00021572,2]
[392195147,1761249519898,500.0,0.00021572,2]
[392195148,1761249519925,500.0,0.00021572,2]
[392195149,1761249519950,500.0,0.00021572,2]
[392195150,1761249519979,500.0,0.00021572,2]
[392195151,1761249520008,500.0,0.00021572,2]
[392195152,1761249520033,500.0,0.00021572,2]
[392195153,1761249520060,156.22830206,0.00021572,2]
[392195154,1761249522335,-1417.48181898,0.0002027,2]
[392195155,1761249531740,5000.0,0.000212,9]
[392195156,1761249554017,5000.0,0.000212,9]
[392195157,1761249569689,195.98,0.00019302,2]
[392195158,1761249570083,391.95,0.00020221,2]
[392195159,1761249573570,-587.93,0.0002114,2]
[392195160,1761249574383,150.0,0.00017566,30]
[392195161,1761249574779,167.98,0.00018402,30]
[392195162,1761249575180,251.97,0.00019239,30]
[392195163,1761249575663,335.96,0.00020075,30]
[392195164,1761249576055,419.95,0.00020912,30]
[392195165,1761249576957,5000.0,0.000212,9]
[392195166,1761249577272,159.0,8.3e-07,2]
[392195167,1761249578305,159.0,8.3e-07,2]
[392195168,1761249579327,159.0,8.3e-07,2]
[392195169,1761249588596,-1823.81713459,0.00021308,2]
[392195170,1761249588624,-955.94079924,0.000215,2]
[392195171,1761249588652,-1105.58657666,0.000215,2]
[392195172,1761249588827,-2229.32097902,0.000215,2]
[392195173,1761249588858,-398.48205583,0.00021532,2]
[392195174,1761249588887,-1823.81713459,0.00021549,2]
[392195175,1761249588919,-425.33966112,0.00021563,10]
[392195176,1761249589044,-246.09033888,0.00021563,10]
[392195177,1761249589077,-559.53,0.00021563,10]
[392195178,1761249589108,-466.27,0.00021563,10]
[392195179,1761249589138,-300.0,0.00021571,2]
[392195180,1761249589171,-343.77169794,0.00021572,2]
[392195181,1761249589200,-500.0,0.00021572,2]
[392195182,1761249589233,-500.0,0.00021572,2]
[392195183,1761249589263,-300.0,0.00021572,2]
[392195184,1761249589295,-500.0,0.00021572,2]
[392195185,1761249589325,-500.0,0.00021572,2]
[392195186,1761249589355,-500.0,0.00021572,2]
[392195187,1761249589386,-68.68592636,0.00021572,2]
[392195188,1761249589456,-431.31407364,0.00021572,2]
[392195189,1761249589491,-500.0,0.00021572,2]
[392195190,1761249589522,-500.0,0.00021572,2]
[392195191,1761249589552,-500.0,0.00021572,2]
[392195192,1761249589584,-500.0,0.00021572,2]
[392195193,1761249589616,-500.0,0.00021572,2]
[392195194,1761249589651,-500.0,0.00021572,2]
[392195195,1761249589681,-569.48335653,0.00021572,2]
[392195196,1761249589713,-500.0,0.00021572,2]
[392195197,1761249589743,-498.41513966,0.00021572,2]
[392195198,1761249589870,-1.58486034,0.00021572,2]
[392195199,1761249589901,-639.34894173,0.00021572,2]
[392195200,1761249589930,-500.0,0.00021572,2]
[392195201,1761249589963,-500.0,0.00021572,2]
[392195202,1761249590066,-500.0,0.00021572,2]
[392195203,1761249590115,-500.0,0.00021572,2]
[392195204,1761249590147,-500.0,0.00021572,2]
[392195205,1761249590177,-500.0,0.00021572,2]
[392195206,1761249590207,-500.0,0.00021572,2]
[392195207,1761249590238,-546.52828569,0.00021572,2]
[392195208,1761249590268,-125.08582448,0.00021572,2]
[392195209,1761249590381,-374.91417552,0.00021572,2]
[392195210,1761249590412,-500.0,0.00021572,2]
[392195211,1761249590443,-500.0,0.00021572,2]
[392195212,1761249590474,-545.70760283,0.00021572,2]
[392195213,1761249590503,-442.246958,0.00021572,2]
[392195214,1761249590534,-500.0,0.00021572,2]
[392195215,1761249590568,-500.0,0.00021572,2]
[392195216,1761249590599,-500.0,0.00021572,2]
[392195217,1761249590630,-500.0,0.00021572,2]
[392195218,1761249590665,-500.0,0.00021572,2]
[392195219,1761249590775,-500.0,0.00021572,2]
[392195220,1761249590805,-500.0,0.00021572,2]
[392195221,1761249590835,-500.0,0.00021572,2]
[392195222,1761249590865,-500.0,0.00021572,2]
[392195223,1761249590897,-519.1,0.00021572,2]
[392195224,1761249593420,388.56,0.00021563,10]
[392195225,1761249599809,4573.25,0.00021573,2]
[392195226,1761249599831,426.75,0.00021573,2]
[392195227,1761249602265,300.0,0.00021572,2]
[392195228,1761249603469,1200.0,0.00021572,2]
[392195229,1761249604736,605.7577272,0.00021464,6]
[392195230,1761249604795,323.8,0.00021563,10]
[392195231,1761249616742,269.83,0.00021563,10]
[392195232,1761249628241,224.86,0.00021563,10]
[392195233,1761249629298,1000.0,0.00020649,2]
[392195234,1761249633705,5649.0122728,0.00021514,2]
[392195235,1761249633728,10000.01,0.00021514,2]
[392195236,1761249633750,8508.18790859,0.00021514,2]
[392195237,1761249639686,187.39,0.00021563,10]
[392195238,1761249647210,185.81,0.00019483,2]
[392195239,1761249647615,371.61,0.00020411,2]
[392195240,1761249648025,557.42,0.00021338,2]
[392195241,1761249651427,150.0,0.00017411,30]
[392195242,1761249651557,39.59209141,0.00021563,10]
[392195243,1761249651579,116.55790859,0.00021563,10]
[392195244,1761249651820,159.26,0.0001824,30]
[392195245,1761249652237,238.89,0.00019069,30]
[392195246,1761249652637,318.52,0.00019898,30]
[392195247,1761249653098,398.16,0.00020727,30]
[392195248,1761249653548,477.79,0.00021556,30]
[392195250,1761249662670,780.8,0.00021563,10]
[392195251,1761249662953,300.0,0.00021572,2]
[392195252,1761249702778,1823.81713459,0.0002148,2]
[392195254,1761249722447,300.0,0.00021572,2]
[392195255,1761249724723,150.0,0.00019467,2]
[392195256,1761249725134,298.88,0.00020394,2]
[392195257,1761249725523,448.31,0.00021321,2]
[392195258,1761249728862,150.0,0.00017394,30]
[392195259,1761249729289,150.0,0.00018223,30]
[392195260,1761249729707,192.13,0.00019051,30]
[392195261,1761249730169,256.18,0.00019879,30]
[392195262,1761249730596,320.22,0.00020708,30]
[392195263,1761249731000,384.27,0.00021536,30]
[392195264,1761249739519,836.4481993,0.00021473,2]
[392195267,1761249748948,1433.06,0.00021563,3]
[392195268,1761249750054,466.71675752,0.00020678,2]
[392195269,1761249750086,3313.64162848,0.00020678,2]
[392195270,1761249760294,716.53,0.00021563,3]
[392195271,1761249771255,358.27,0.00021563,3]
[392195272,1761249781961,179.13,0.00021563,3]
[392195273,1761249782791,300.0,0.00021572,2]
[392195274,1761249792750,537.42,0.00021563,3]
[392195276,1761249801485,150.0,0.00019485,2]
[392195277,1761249801962,239.06,0.00020413,2]
[392195278,1761249802891,358.59,0.0002134,2]
[392195279,1761249806292,150.0,0.00017395,30]
[392195280,1761249806702,150.0,0.00018223,30]
[392195281,1761249807141,153.68,0.00019052,30]
[392195282,1761249807577,204.91,0.0001988,30]
[392195283,1761249808001,256.13,0.00020709,30]
[392195284,1761249808432,307.36,0.00021537,30]
[392195286,1761249843311,300.0,0.00021572,2]
[392195287,1761249878944,150.0,0.00019473,2]
[392195288,1761249879338,188.92,0.00020401,2]
[392195289,1761249879724,283.38,0.00021328,2]
[392195290,1761249883138,150.0,0.00017377,30]
[392195291,1761249883532,150.0,0.00018204,30]
[392195292,1761249883951,150.0,0.00019031,30]
[392195293,1761249884364,161.93,0.00019859,30]
[392195294,1761249884799,202.41,0.00020686,30]
[392195295,1761249885202,242.9,0.00021514,30]
[392195296,1761249903200,217.0,0.00021572,2]
[392195297,1761249906464,300.0,0.00021572,2]
[392195298,1761249917887,128.74837152,0.00021473,2]
[392195299,1761249917909,2539.17767304,0.00021473,2]
[392195300,1761249934004,731.89217444,0.00021473,2]
[392195301,1761249955380,150.0,0.00019301,2]
[392195302,1761249955773,150.0,0.0002022,2]
[392195303,1761249956177,219.25,0.0002114,2]
[392195304,1761249959516,150.0,0.00017507,30]
[392195305,1761249959967,150.0,0.00018341,30]
[392195306,1761249960383,150.0,0.00019175,30]
[392195308,1761249960802,150.0,0.00020008,30]
[392195309,1761249961191,156.61,0.00020842,30]
[392195311,1761249963231,300.0,0.00021572,2]
[392195312,1761250023315,300.0,0.00021572,2]
[392195315,1761250033097,150.0,0.00019323,2]
[392195316,1761250033513,150.0,0.00020243,2]
[392195317,1761250033941,170.54,0.00021163,2]
[392195325,1761250037262,150.0,0.0001232,30]
[392195326,1761250037703,150.0,0.00012906,30]
[392195327,1761250038104,150.0,0.00013493,30]
[392195328,1761250038509,150.0,0.00014079,30]
[392195329,1761250038951,150.0,0.00014666,30]
[392195330,1761250039357,150.0,0.00015253,30]
[392195331,1761250039823,170.54,0.00015839,30]
[392195334,1761250061610,500.0,0.00021572,2]
[392195335,1761250083282,300.0,0.00021572,2]
[392195336,1761250084154,227.6,0.00015225,2]
[392195337,1761250084478,227.6,0.00015225,2]
[392195338,1761250084828,227.6,0.00015225,2]
[392195339,1761250107668,150.0,0.00019304,2]
[392195340,1761250108153,150.0,0.00020223,2]
[392195341,1761250108575,150.0,0.00021142,2]
[392195342,1761250109403,500.0,0.00021572,2]
[392195343,1761250109667,200.67465276,0.00021572,2]
[392195344,1761250111836,150.0,0.0001747,30]
[392195345,1761250112248,150.0,0.00018302,30]
[392195346,1761250112667,150.0,0.00019134,30]
[392195347,1761250113097,150.0,0.00019965,30]
[392195348,1761250131619,78.52549976,0.00021473,2]
[392195349,1761250131646,561.88015284,0.00021473,2]
[392195350,1761250146564,800.0,0.00021487,2]
[392195351,1761250146780,800.0,0.00021516,2]
[392195443,1761250180327,150.0,0.00019312,2]
[392195444,1761250180730,150.0,0.00020231,2]
[392195445,1761250181172,150.0,0.00021151,2]
[392195446,1761250184187,150.0,0.000174,30]
[392195463,1761250198687,242.53857093,0.00020614,2]
[392195465,1761250202371,300.0,0.00021572,2]
[392195495,1761250232349,-454.44988138,0.00021573,2]
[392195497,1761250232360,-66720.44273702,0.00021573,2]
[392195499,1761250232371,-2030.9729312,0.00021573,2]
[392195572,1761250238390,-3654.13539753,0.00021573,2]
[392196157,1761250246809,-3538.19455488,0.00021573,2]
[392196175,1761250246970,-1209.68,0.00021573,2]
[392196179,1761250247027,-2571.29047449,0.00021573,2]
[392196248,1761250258343,2134.34083564,0.000215,2]
[392196249,1761250259148,150.0,0.0001931,2]
[392196250,1761250259564,150.0,0.00020229,2]
[392196251,1761250260000,150.0,0.00021149,2]
[392196252,1761250262256,300.0,0.00021572,2]
[392196254,1761250271180,215.1461385,0.0002065,2]
[392196255,1761250297962,206.67,0.00021563,10]
[392196256,1761250304519,500.0,0.00021572,2]
[392196257,1761250304771,500.0,0.00021572,2]
[392196258,1761250305025,500.0,0.00021572,2]
[392196259,1761250305274,397.77,0.00021572,2]
[392196260,1761250309108,172.22,0.00021563,10]
[392196261,1761250318922,1000.0,0.00021572,2]
[392196262,1761250319157,319.44430209,0.00021572,2]
[392196263,1761250319180,680.55569791,0.00021572,2]
[392196264,1761250319382,1000.0,0.00021572,2]
[392196265,1761250319611,1000.0,0.00021572,2]
[392196266,1761250319855,1000.0,0.00021572,2]
[392196267,1761250320205,1000.0,0.00021572,2]
[392196268,1761250320333,1000.0,0.00021572,2]
[392196269,1761250320565,1000.0,0.00021572,2]
[392196270,1761250320793,1000.0,0.00021572,2]
[392196271,1761250320858,861.15,0.00021563,10]
[392196272,1761250321033,1000.0,0.00021572,2]
[392196273,1761250321289,458.30430209,0.00021572,2]
[392196274,1761250321313,541.69569791,0.00021572,2]
[392196275,1761250321528,1000.0,0.00021572,2]
[392196276,1761250321775,579.63055787,0.00021572,2]
[392196277,1761250322356,300.0,0.00021572,2]
[392196278,1761250327337,150.0,0.00019301,2]
[392196279,1761250327740,150.0,0.0002022,2]
[392196280,1761250328161,150.0,0.00021139,2]
[392196281,1761250330491,1823.8171346,0.00021385,2]
[392196285,1761250358647,597.11,0.00021563,3]
[392196288,1761250369567,298.55,0.00021563,3]
[392196289,1761250380618,895.68,0.00021563,3]
[392196290,1761250383088,300.0,0.00021572,2]
[392196292,1761250393690,150.0,0.00019314,2]
[392196293,1761250394083,150.0,0.00020234,2]
[392196294,1761250394490,150.0,0.00021153,2]
[392196304,1761250442620,300.0,0.00021572,2]
[392196306,1761250502047,300.0,0.00021572,2]
[392196308,1761250509148,219.67435256,0.0002156,5]
[392196309,1761250522329,1943.85225706,0.00021473,2]
[392196310,1761250522353,10000.01,0.00021473,2]
[392196311,1761250522374,10000.01,0.00021473,2]
[392196312,1761250522396,10000.01,0.00021473,2]
[392196313,1761250522417,10000.01,0.00021473,2]
[392196314,1761250522438,10000.01,0.00021473,2]
[392196315,1761250522459,10000.01,0.00021473,2]
[392196316,1761250522480,10000.01,0.00021473,2]
[392196317,1761250522501,10000.01,0.00021473,2]
[392196318,1761250522521,10000.01,0.00021473,2]
[392196319,1761250527493,5000.0,0.000212,9]
[392196320,1761250535840,5000.0,0.000212,9]
[392196321,1761250536243,-173.736494,0.00020629,2]
[392196324,1761250562979,300.0,0.00021472,2]
[392196326,1761250592543,428.10920189,0.00021472,2]
[392196327,1761250592586,236.42896808,0.00021472,2]
[392196328,1761250593599,213.55964899,0.00021472,2]
[392196329,1761250593633,500.0,0.00021472,2]
[392196330,1761250593667,500.0,0.00021472,2]
[392196331,1761250593703,623.78064329,0.00021472,2]
[392196332,1761250593738,500.0,0.00021472,2]
[392196333,1761250593783,500.0,0.00021472,2]
[392196334,1761250593818,500.0,0.00021472,2]
[392196335,1761250593853,500.0,0.00021472,2]
[392196336,1761250593904,458.95633339,0.00021472,2]
[392196337,1761250593940,399.5726063,0.00021472,2]
[392196338,1761250593972,500.0,0.00021472,2]